[Event "Titled Tuesday Blitz June 6 Early 2023"]
[White "Sargissyan, Sargis"]
[Black "Machidon, Cristi"]
[WhiteFideId "13303210"]
[BlackFideId "13904590"]
[WhiteElo "2109"]
[BlackElo "2355"]
[Result "0-1"]
[Round "6"]
[TimeControl "180+2"]
[Date "2023.06.06"]
[WhiteClock "0:00:01"]
[BlackClock "0:00:04"]
[Board "122"]

1. e4 {[%clk 0:02:59]}  d5 {[%clk 0:02:59]} 2. exd5 {[%clk 0:02:59]}  Qxd5 {[%clk 0:03:00]} 3. Nc3 {[%clk 0:02:59]}  Qd8 {[%clk 0:03:00]} 4. d4 {[%clk 0:03:00]}  Nf6 {[%clk 0:03:00]} 5. Bc4 {[%clk 0:03:00]}  Bf5 {[%clk 0:03:01]} 6. Nf3 {[%clk 0:03:01]}  e6 {[%clk 0:03:01]} 7. O-O {[%clk 0:02:58]}  c6 {[%clk 0:03:01]} 8. Qe2 {[%clk 0:02:54]}  Bb4 {[%clk 0:02:43]} 9. Bg5 {[%clk 0:02:47]}  O-O {[%clk 0:02:37]} 10. Rad1 {[%clk 0:02:45]}  h6 {[%clk 0:02:33]} 11. Bh4 {[%clk 0:02:45]}  Nbd7 {[%clk 0:02:33]} 12. Ne5 {[%clk 0:02:45]}  Re8 {[%clk 0:02:22]} 13. Nxd7 {[%clk 0:02:42]}  Qxd7 {[%clk 0:02:23]} 14. Bxf6 {[%clk 0:02:41]}  gxf6 {[%clk 0:02:23]} 15. Ne4 {[%clk 0:02:40]}  Kg7 {[%clk 0:02:17]} 16. Ng3 {[%clk 0:02:23]}  Bg6 {[%clk 0:02:14]} 17. Nh5+ {[%clk 0:02:24]}  Bxh5 {[%clk 0:02:11]} 18. Qxh5 {[%clk 0:02:25]}  Rg8 {[%clk 0:01:49]} 19. Rd3 {[%clk 0:02:21]}  Kh7 {[%clk 0:01:31]} 20. c3 {[%clk 0:01:16]}  Rg5 {[%clk 0:01:25]} 21. Qe2 {[%clk 0:01:11]}  Bd6 {[%clk 0:01:24]} 22. Rh3 {[%clk 0:01:07]}  Rag8 {[%clk 0:01:20]} 23. Bd3+ {[%clk 0:01:07]}  f5 {[%clk 0:01:20]} 24. g3 {[%clk 0:01:04]}  a5 {[%clk 0:01:04]} 25. Kh1 {[%clk 0:01:03]}  a4 {[%clk 0:01:02]} 26. f4 {[%clk 0:00:57]}  R5g6 {[%clk 0:01:02]} 27. a3 {[%clk 0:00:37]}  Bc7 {[%clk 0:00:54]} 28. Qf3 {[%clk 0:00:36]}  Rd8 {[%clk 0:00:41]} 29. Bc2 {[%clk 0:00:35]}  Ra8 {[%clk 0:00:34]} 30. Rh4 {[%clk 0:00:32]}  Qd5 {[%clk 0:00:27]} 31. Qxd5 {[%clk 0:00:25]}  cxd5 {[%clk 0:00:28]} 32. g4 {[%clk 0:00:23]}  Bd8 {[%clk 0:00:23]} 33. gxf5 {[%clk 0:00:21]}  Bxh4 {[%clk 0:00:22]} 34. fxg6+ {[%clk 0:00:21]}  fxg6 {[%clk 0:00:23]} 35. Kg2 {[%clk 0:00:19]}  Kg7 {[%clk 0:00:20]} 36. Kh3 {[%clk 0:00:19]}  Be7 {[%clk 0:00:17]} 37. Re1 {[%clk 0:00:18]}  Ra6 {[%clk 0:00:17]} 38. Rg1 {[%clk 0:00:17]}  g5 {[%clk 0:00:15]} 39. fxg5 {[%clk 0:00:16]}  Bxg5 {[%clk 0:00:14]} 40. Rg2 {[%clk 0:00:14]}  Kf6 {[%clk 0:00:13]} 41. Kg4 {[%clk 0:00:14]}  e5 {[%clk 0:00:12]} 42. Rf2+ {[%clk 0:00:14]}  Ke6 {[%clk 0:00:12]} 43. Bf5+ {[%clk 0:00:10]}  Kd6 {[%clk 0:00:12]} 44. dxe5+ {[%clk 0:00:10]}  Kxe5 {[%clk 0:00:13]} 45. Re2+ {[%clk 0:00:11]}  Kd6 {[%clk 0:00:11]} 46. h4 {[%clk 0:00:11]}  Bc1 {[%clk 0:00:08]} 47. Re6+ {[%clk 0:00:08]}  Kc5 {[%clk 0:00:08]} 48. Rxa6 {[%clk 0:00:08]}  bxa6 {[%clk 0:00:08]} 49. Bd7 {[%clk 0:00:07]}  Bxb2 {[%clk 0:00:09]} 50. Bxa4 {[%clk 0:00:08]}  Bxa3 {[%clk 0:00:09]} 51. Kf3 {[%clk 0:00:08]}  Bb2 {[%clk 0:00:09]} 52. Ke2 {[%clk 0:00:08]}  Bxc3 {[%clk 0:00:08]} 53. Kd3 {[%clk 0:00:08]}  Bf6 {[%clk 0:00:09]} 54. h5 {[%clk 0:00:09]}  a5 {[%clk 0:00:09]} 55. Be8 {[%clk 0:00:09]}  Kb4 {[%clk 0:00:09]} 56. Bf7 {[%clk 0:00:09]}  d4 {[%clk 0:00:07]} 57. Be6 {[%clk 0:00:09]}  a4 {[%clk 0:00:08]} 58. Kc2 {[%clk 0:00:09]}  Kc5 {[%clk 0:00:05]} 59. Kd3 {[%clk 0:00:09]}  Kd6 {[%clk 0:00:04]} 60. Bg8 {[%clk 0:00:09]}  Ke5 {[%clk 0:00:04]} 61. Bf7 {[%clk 0:00:10]}  Kf5 {[%clk 0:00:04]} 62. Kc2 {[%clk 0:00:09]}  Ke4 {[%clk 0:00:04]} 63. Bc4 {[%clk 0:00:04]}  Ke3 {[%clk 0:00:04]} 64. Kd1 {[%clk 0:00:01]}  d3 {[%clk 0:00:04]} 65. Bb5 {[%clk 0:00:01]}  a3 {[%clk 0:00:04]} 66. Bc4 {[%clk 0:00:02]}  Bc3 {[%clk 0:00:04]} 67. Ba2 {[%clk 0:00:01]}  Kf4 {[%clk 0:00:04]} 0-1


[Site "https://www.chess.com"]

[Event "Titled Tuesday Blitz June 6 Early 2023"]
[White "Alahakoon, Isuru"]
[Black "Bruedigam, Martin"]
[WhiteFideId "9900993"]
[BlackFideId "24608033"]
[WhiteElo "1819"]
[BlackElo "2331"]
[Result "0-1"]
[Round "6"]
[TimeControl "180+2"]
[Date "2023.06.06"]
[WhiteClock "0:00:06"]
[BlackClock "0:00:10"]
[Board "123"]

1. Nf3 {[%clk 0:03:00]}  d5 {[%clk 0:02:53]} 2. e3 {[%clk 0:03:00]}  c5 {[%clk 0:02:50]} 3. b3 {[%clk 0:02:59]}  Nc6 {[%clk 0:02:49]} 4. Bb2 {[%clk 0:02:58]}  a6 {[%clk 0:02:47]} 5. d4 {[%clk 0:02:47]}  cxd4 {[%clk 0:02:43]} 6. exd4 {[%clk 0:02:46]}  Bg4 {[%clk 0:02:41]} 7. Nbd2 {[%clk 0:02:44]}  e6 {[%clk 0:02:42]} 8. Bd3 {[%clk 0:02:43]}  Nf6 {[%clk 0:02:39]} 9. O-O {[%clk 0:02:42]}  Bd6 {[%clk 0:02:39]} 10. a3 {[%clk 0:02:42]}  Qc7 {[%clk 0:02:38]} 11. Qe1 {[%clk 0:02:37]}  O-O {[%clk 0:02:34]} 12. Ne5 {[%clk 0:02:37]}  Bf5 {[%clk 0:02:34]} 13. Bxf5 {[%clk 0:02:35]}  exf5 {[%clk 0:02:35]} 14. c4 {[%clk 0:02:14]}  Rfe8 {[%clk 0:02:32]} 15. Ndf3 {[%clk 0:02:05]}  dxc4 {[%clk 0:02:05]} 16. bxc4 {[%clk 0:02:04]}  Ng4 {[%clk 0:02:01]} 17. Qb1 {[%clk 0:01:33]}  Ngxe5 {[%clk 0:01:17]} 18. dxe5 {[%clk 0:01:32]}  Nxe5 {[%clk 0:01:17]} 19. Qxf5 {[%clk 0:01:23]}  Nxf3+ {[%clk 0:01:17]} 20. Qxf3 {[%clk 0:01:23]}  Bxh2+ {[%clk 0:01:17]} 21. Kh1 {[%clk 0:01:24]}  Be5 {[%clk 0:01:17]} 22. Bxe5 {[%clk 0:01:23]}  Rxe5 {[%clk 0:01:17]} 23. g3 {[%clk 0:01:20]}  Rc5 {[%clk 0:01:09]} 24. Rab1 {[%clk 0:01:16]}  Rb8 {[%clk 0:01:05]} 25. Rfc1 {[%clk 0:01:12]}  g6 {[%clk 0:01:00]} 26. Kg2 {[%clk 0:01:11]}  h5 {[%clk 0:00:58]} 27. Rb4 {[%clk 0:01:00]}  b6 {[%clk 0:00:58]} 28. Qb3 {[%clk 0:00:51]}  h4 {[%clk 0:00:28]} 29. gxh4 {[%clk 0:00:49]}  Rh5 {[%clk 0:00:18]} 30. Qg3 {[%clk 0:00:48]}  Qc6+ {[%clk 0:00:18]} 31. Kg1 {[%clk 0:00:44]}  Rd8 {[%clk 0:00:18]} 32. c5 {[%clk 0:00:39]}  bxc5 {[%clk 0:00:17]} 33. Rf4 {[%clk 0:00:37]}  Rhd5 {[%clk 0:00:16]} 34. Qf3 {[%clk 0:00:30]}  Qd7 {[%clk 0:00:16]} 35. Re1 {[%clk 0:00:25]}  Rd1 {[%clk 0:00:16]} 36. Rxd1 {[%clk 0:00:25]}  Qxd1+ {[%clk 0:00:17]} 37. Qxd1 {[%clk 0:00:25]}  Rxd1+ {[%clk 0:00:17]} 38. Kg2 {[%clk 0:00:26]}  Rd6 {[%clk 0:00:12]} 39. Rc4 {[%clk 0:00:25]}  Rc6 {[%clk 0:00:12]} 40. Kf3 {[%clk 0:00:26]}  Kf8 {[%clk 0:00:12]} 41. Ke4 {[%clk 0:00:26]}  Ke7 {[%clk 0:00:12]} 42. Kd5 {[%clk 0:00:27]}  Rf6 {[%clk 0:00:12]} 43. Kxc5 {[%clk 0:00:25]}  Rxf2 {[%clk 0:00:11]} 44. Kb6 {[%clk 0:00:25]}  Rf3 {[%clk 0:00:10]} 45. a4 {[%clk 0:00:23]}  f5 {[%clk 0:00:09]} 46. Kxa6 {[%clk 0:00:23]}  f4 {[%clk 0:00:09]} 47. a5 {[%clk 0:00:23]}  Kf6 {[%clk 0:00:09]} 48. Kb7 {[%clk 0:00:23]}  Kf5 {[%clk 0:00:10]} 49. a6 {[%clk 0:00:23]}  Rb3+ {[%clk 0:00:10]} 50. Kc8 {[%clk 0:00:22]}  f3 {[%clk 0:00:09]} 51. a7 {[%clk 0:00:20]}  Ra3 {[%clk 0:00:10]} 52. Kb8 {[%clk 0:00:19]}  f2 {[%clk 0:00:09]} 53. Rc1 {[%clk 0:00:20]}  Kg4 {[%clk 0:00:09]} 54. Rc4+ {[%clk 0:00:16]}  Kg3 {[%clk 0:00:09]} 55. Rc1 {[%clk 0:00:12]}  Kxh4 {[%clk 0:00:08]} 56. a8=Q {[%clk 0:00:03]}  Rxa8+ {[%clk 0:00:08]} 57. Kxa8 {[%clk 0:00:04]}  g5 {[%clk 0:00:08]} 58. Kb7 {[%clk 0:00:04]}  g4 {[%clk 0:00:09]} 59. Kc6 {[%clk 0:00:05]}  g3 {[%clk 0:00:09]} 60. Kd5 {[%clk 0:00:06]}  g2 {[%clk 0:00:10]} 0-1


[Site "https://www.chess.com"]

[Event "Titled Tuesday Blitz June 6 Early 2023"]
[White "Bilan, Danila"]
[Black "Polanco Nunez, Yoel Estarling"]
[WhiteFideId "24161918"]
[BlackFideId "6401783"]
[WhiteElo "2146"]
[BlackElo "2132"]
[Result "1-0"]
[Round "6"]
[TimeControl "180+2"]
[Date "2023.06.06"]
[WhiteClock "0:00:03"]
[BlackClock "0:00:43"]
[Board "124"]

1. d4 {[%clk 0:02:54]}  Nf6 {[%clk 0:02:58]} 2. Nf3 {[%clk 0:02:55]}  d5 {[%clk 0:02:58]} 3. c4 {[%clk 0:02:55]}  e6 {[%clk 0:02:58]} 4. Nc3 {[%clk 0:02:54]}  Be7 {[%clk 0:02:58]} 5. Bg5 {[%clk 0:02:50]}  O-O {[%clk 0:02:58]} 6. e3 {[%clk 0:02:51]}  Ne4 {[%clk 0:02:57]} 7. Bf4 {[%clk 0:02:44]}  Nxc3 {[%clk 0:02:54]} 8. bxc3 {[%clk 0:02:45]}  b6 {[%clk 0:02:54]} 9. cxd5 {[%clk 0:02:40]}  exd5 {[%clk 0:02:52]} 10. Bd3 {[%clk 0:02:40]}  Bb7 {[%clk 0:02:51]} 11. O-O {[%clk 0:02:38]}  c5 {[%clk 0:02:51]} 12. Rc1 {[%clk 0:02:22]}  c4 {[%clk 0:02:42]} 13. Bb1 {[%clk 0:02:18]}  Nc6 {[%clk 0:02:41]} 14. Re1 {[%clk 0:02:12]}  b5 {[%clk 0:02:39]} 15. e4 {[%clk 0:02:06]}  dxe4 {[%clk 0:02:39]} 16. Bxe4 {[%clk 0:02:07]}  Na5 {[%clk 0:02:25]} 17. d5 {[%clk 0:01:36]}  f5 {[%clk 0:02:09]} 18. Bc2 {[%clk 0:01:16]}  Bf6 {[%clk 0:01:58]} 19. Bxf5 {[%clk 0:00:46]}  Bxd5 {[%clk 0:01:58]} 20. Qc2 {[%clk 0:00:35]}  Bxf3 {[%clk 0:01:41]} 21. gxf3 {[%clk 0:00:27]}  Bg5 {[%clk 0:01:40]} 22. Rcd1 {[%clk 0:00:14]}  Qf6 {[%clk 0:01:38]} 23. Bxh7+ {[%clk 0:00:09]}  Kh8 {[%clk 0:01:38]} 24. Bg3 {[%clk 0:00:10]}  Rad8 {[%clk 0:01:31]} 25. Be4 {[%clk 0:00:08]}  Nc6 {[%clk 0:01:27]} 26. Rxd8 {[%clk 0:00:08]}  Rxd8 {[%clk 0:01:27]} 27. Rd1 {[%clk 0:00:08]}  Rxd1+ {[%clk 0:01:25]} 28. Qxd1 {[%clk 0:00:08]}  Ne5 {[%clk 0:01:24]} 29. Qd5 {[%clk 0:00:06]}  Ng6 {[%clk 0:01:08]} 30. Qxb5 {[%clk 0:00:03]}  Kh7 {[%clk 0:01:00]} 31. Qxc4 {[%clk 0:00:03]}  Kh6 {[%clk 0:01:00]} 32. Qc6 {[%clk 0:00:02]}  Qxc6 {[%clk 0:00:58]} 33. Bxc6 {[%clk 0:00:03]}  Nf4 {[%clk 0:00:58]} 34. Be4 {[%clk 0:00:03]}  g6 {[%clk 0:00:57]} 35. c4 {[%clk 0:00:03]}  Kg7 {[%clk 0:00:57]} 36. c5 {[%clk 0:00:03]}  Ne2+ {[%clk 0:00:53]} 37. Kf1 {[%clk 0:00:03]}  Nxg3+ {[%clk 0:00:52]} 38. fxg3 {[%clk 0:00:04]}  Bd8 {[%clk 0:00:52]} 39. c6 {[%clk 0:00:03]}  Kf6 {[%clk 0:00:52]} 40. Ke2 {[%clk 0:00:04]}  g5 {[%clk 0:00:52]} 41. Kd3 {[%clk 0:00:04]}  Bc7 {[%clk 0:00:52]} 42. Kc4 {[%clk 0:00:04]}  Ke5 {[%clk 0:00:53]} 43. Bd5 {[%clk 0:00:04]}  Bb6 {[%clk 0:00:51]} 44. h4 {[%clk 0:00:03]}  gxh4 {[%clk 0:00:49]} 45. gxh4 {[%clk 0:00:04]}  Kf4 {[%clk 0:00:49]} 46. Be4 {[%clk 0:00:03]}  Bc7 {[%clk 0:00:45]} 47. Kd5 {[%clk 0:00:03]}  Kg3 {[%clk 0:00:43]} 48. h5 {[%clk 0:00:03]} 1-0


[Site "https://www.chess.com"]

[Event "Titled Tuesday Blitz June 6 Early 2023"]
[White "Chernomordik, Pavel"]
[Black "Korpics, Zsolt"]
[WhiteFideId "2804530"]
[BlackFideId "705241"]
[WhiteElo "2193"]
[BlackElo "2358"]
[Result "1-0"]
[Round "6"]
[TimeControl "180+2"]
[Date "2023.06.06"]
[WhiteClock "0:00:34"]
[BlackClock "0:00:05"]
[Board "125"]

1. e4 {[%clk 0:03:00]}  c5 {[%clk 0:02:59]} 2. Nc3 {[%clk 0:03:00]}  Nc6 {[%clk 0:02:58]} 3. Bb5 {[%clk 0:03:00]}  Nd4 {[%clk 0:02:56]} 4. Bc4 {[%clk 0:02:59]}  g6 {[%clk 0:02:56]} 5. Nge2 {[%clk 0:02:59]}  Bg7 {[%clk 0:02:56]} 6. Nxd4 {[%clk 0:02:59]}  cxd4 {[%clk 0:02:54]} 7. Qf3 {[%clk 0:02:58]}  Nf6 {[%clk 0:02:28]} 8. Ne2 {[%clk 0:02:55]}  e5 {[%clk 0:02:07]} 9. c3 {[%clk 0:02:52]}  dxc3 {[%clk 0:02:07]} 10. dxc3 {[%clk 0:02:50]}  O-O {[%clk 0:02:04]} 11. O-O {[%clk 0:02:44]}  Qc7 {[%clk 0:02:00]} 12. Bb3 {[%clk 0:02:41]}  d6 {[%clk 0:01:58]} 13. Bg5 {[%clk 0:02:38]}  Bg4 {[%clk 0:01:37]} 14. Qe3 {[%clk 0:02:37]}  Nd7 {[%clk 0:01:37]} 15. f3 {[%clk 0:02:31]}  Be6 {[%clk 0:01:34]} 16. Rad1 {[%clk 0:02:25]}  Nc5 {[%clk 0:01:28]} 17. Bd5 {[%clk 0:02:22]}  f5 {[%clk 0:00:41]} 18. b4 {[%clk 0:02:09]}  f4 {[%clk 0:00:36]} 19. Qc1 {[%clk 0:02:00]}  Bxd5 {[%clk 0:00:35]} 20. Rxd5 {[%clk 0:01:51]}  Ne6 {[%clk 0:00:35]} 21. Bh4 {[%clk 0:01:50]}  g5 {[%clk 0:00:30]} 22. Bf2 {[%clk 0:01:49]}  b6 {[%clk 0:00:23]} 23. Rfd1 {[%clk 0:01:48]}  Rad8 {[%clk 0:00:23]} 24. Qc2 {[%clk 0:01:43]}  Rf6 {[%clk 0:00:19]} 25. Qb3 {[%clk 0:01:42]}  Kh8 {[%clk 0:00:18]} 26. R1d2 {[%clk 0:01:41]}  Bf8 {[%clk 0:00:18]} 27. Qd1 {[%clk 0:01:40]}  Qc6 {[%clk 0:00:17]} 28. Qb3 {[%clk 0:01:34]}  Be7 {[%clk 0:00:15]} 29. c4 {[%clk 0:01:30]}  Nc7 {[%clk 0:00:14]} 30. R5d3 {[%clk 0:01:29]}  Rg8 {[%clk 0:00:14]} 31. h3 {[%clk 0:01:21]}  h5 {[%clk 0:00:14]} 32. Nc3 {[%clk 0:01:17]}  g4 {[%clk 0:00:13]} 33. Bh4 {[%clk 0:01:15]}  Rf7 {[%clk 0:00:11]} 34. Bxe7 {[%clk 0:01:15]}  Rxe7 {[%clk 0:00:04]} 35. Rxd6 {[%clk 0:01:12]}  Qe8 {[%clk 0:00:04]} 36. Rd8 {[%clk 0:01:03]}  Qxd8 {[%clk 0:00:03]} 37. Rxd8 {[%clk 0:01:02]}  Rxd8 {[%clk 0:00:02]} 38. Nd5 {[%clk 0:01:02]}  Red7 {[%clk 0:00:03]} 39. fxg4 {[%clk 0:00:58]}  Ne6 {[%clk 0:00:02]} 40. gxh5 {[%clk 0:00:57]}  Nd4 {[%clk 0:00:02]} 41. Qd1 {[%clk 0:00:54]}  Rc8 {[%clk 0:00:02]} 42. Qg4 {[%clk 0:00:53]}  Rdd8 {[%clk 0:00:01]} 43. h6 {[%clk 0:00:53]}  Rg8 {[%clk 0:00:01]} 44. Qh5 {[%clk 0:00:51]}  Rxc4 {[%clk 0:00:01]} 45. Qxe5+ {[%clk 0:00:50]}  Kh7 {[%clk 0:00:01]} 46. Nf6+ {[%clk 0:00:49]}  Kxh6 {[%clk 0:00:02]} 47. Nxg8+ {[%clk 0:00:49]}  Kh7 {[%clk 0:00:03]} 48. Nf6+ {[%clk 0:00:48]}  Kh6 {[%clk 0:00:03]} 49. Ng4+ {[%clk 0:00:42]}  Kg6 {[%clk 0:00:04]} 50. Qd6+ {[%clk 0:00:39]}  Kh7 {[%clk 0:00:04]} 51. Qd5 {[%clk 0:00:37]}  Rc1+ {[%clk 0:00:04]} 52. Kh2 {[%clk 0:00:37]}  Ne2 {[%clk 0:00:04]} 53. Qf7+ {[%clk 0:00:36]}  Kh8 {[%clk 0:00:04]} 54. Nf6 {[%clk 0:00:35]}  Ng3 {[%clk 0:00:05]} 55. Qg8# {[%clk 0:00:34]} 1-0


[Site "https://www.chess.com"]

[Event "Titled Tuesday Blitz June 6 Early 2023"]
[White "Petukhov, Dmitry"]
[Black "Andrews, Todd"]
[WhiteFideId "4142748"]
[BlackFideId "2012456"]
[WhiteElo "2311"]
[BlackElo "2145"]
[Result "0-1"]
[Round "6"]
[TimeControl "180+2"]
[Date "2023.06.06"]
[WhiteClock "0:00:20"]
[BlackClock "0:00:27"]
[Board "126"]

1. e4 {[%clk 0:03:00]}  e6 {[%clk 0:02:59]} 2. d4 {[%clk 0:02:59]}  d5 {[%clk 0:03:00]} 3. e5 {[%clk 0:02:59]}  c5 {[%clk 0:03:00]} 4. c3 {[%clk 0:02:59]}  Nc6 {[%clk 0:03:00]} 5. Nf3 {[%clk 0:02:59]}  Bd7 {[%clk 0:03:01]} 6. a3 {[%clk 0:02:59]}  Nge7 {[%clk 0:02:59]} 7. b4 {[%clk 0:02:57]}  cxd4 {[%clk 0:02:59]} 8. cxd4 {[%clk 0:02:58]}  Nf5 {[%clk 0:02:59]} 9. Be3 {[%clk 0:02:58]}  b5 {[%clk 0:02:58]} 10. Bd3 {[%clk 0:02:54]}  Nxe3 {[%clk 0:02:55]} 11. fxe3 {[%clk 0:02:53]}  a5 {[%clk 0:02:55]} 12. Bxb5 {[%clk 0:02:47]}  axb4 {[%clk 0:02:54]} 13. a4 {[%clk 0:02:47]}  Na5 {[%clk 0:02:54]} 14. Nbd2 {[%clk 0:02:43]}  Be7 {[%clk 0:02:47]} 15. O-O {[%clk 0:02:42]}  O-O {[%clk 0:02:47]} 16. Bd3 {[%clk 0:02:38]}  Qb6 {[%clk 0:02:40]} 17. Qe2 {[%clk 0:02:33]}  Rfc8 {[%clk 0:02:33]} 18. e4 {[%clk 0:02:29]}  Bc6 {[%clk 0:02:14]} 19. Kh1 {[%clk 0:02:25]}  dxe4 {[%clk 0:02:02]} 20. Nxe4 {[%clk 0:02:26]}  Nb3 {[%clk 0:02:01]} 21. Neg5 {[%clk 0:02:12]}  Nxa1 {[%clk 0:01:50]} 22. Bxh7+ {[%clk 0:02:09]}  Kf8 {[%clk 0:01:47]} 23. Nxe6+ {[%clk 0:01:14]}  Ke8 {[%clk 0:01:25]} 24. Nxg7+ {[%clk 0:01:11]}  Kd8 {[%clk 0:01:24]} 25. Rxa1 {[%clk 0:01:07]}  b3 {[%clk 0:01:18]} 26. d5 {[%clk 0:01:07]}  b2 {[%clk 0:01:08]} 27. Rb1 {[%clk 0:01:03]}  Bxd5 {[%clk 0:01:06]} 28. Qd2 {[%clk 0:00:34]}  Rc1+ {[%clk 0:00:50]} 29. Rxc1 {[%clk 0:00:32]}  bxc1=Q+ {[%clk 0:00:51]} 30. Qxc1 {[%clk 0:00:33]}  Rxa4 {[%clk 0:00:34]} 31. Qd1 {[%clk 0:00:30]}  Qa5 {[%clk 0:00:32]} 32. Nf5 {[%clk 0:00:24]}  Ra1 {[%clk 0:00:30]} 33. Qg1 {[%clk 0:00:19]}  Rxg1+ {[%clk 0:00:28]} 34. Nxg1 {[%clk 0:00:20]}  Bc5 {[%clk 0:00:27]} 0-1


[Site "https://www.chess.com"]

[Event "Titled Tuesday Blitz June 6 Early 2023"]
[White "Vyatkin, Dmitry"]
[Black "Vaglio Munoz, Jaime"]
[WhiteFideId "4171900"]
[BlackFideId "6500145"]
[WhiteElo "2279"]
[BlackElo "2199"]
[Result "0-1"]
[Round "6"]
[TimeControl "180+2"]
[Date "2023.06.06"]
[WhiteClock "0:01:52"]
[BlackClock "0:02:20"]
[Board "133"]

1. d4 {[%clk 0:03:00]}  c6 {[%clk 0:02:59]} 2. c4 {[%clk 0:02:58]}  b5 {[%clk 0:02:59]} 3. e4 {[%clk 0:02:52]}  bxc4 {[%clk 0:02:59]} 4. Bxc4 {[%clk 0:02:50]}  d5 {[%clk 0:02:59]} 5. exd5 {[%clk 0:02:47]}  cxd5 {[%clk 0:03:00]} 6. Bd3 {[%clk 0:02:47]}  Nf6 {[%clk 0:02:59]} 7. h3 {[%clk 0:02:46]}  Qa5+ {[%clk 0:02:57]} 8. Nc3 {[%clk 0:02:45]}  Ba6 {[%clk 0:02:56]} 9. Nf3 {[%clk 0:02:45]}  e6 {[%clk 0:02:54]} 10. O-O {[%clk 0:02:44]}  Be7 {[%clk 0:02:52]} 11. a3 {[%clk 0:02:37]}  Bxd3 {[%clk 0:02:49]} 12. Qxd3 {[%clk 0:02:37]}  O-O {[%clk 0:02:49]} 13. b4 {[%clk 0:02:36]}  Bxb4 {[%clk 0:02:47]} 14. axb4 {[%clk 0:01:59]}  Qxa1 {[%clk 0:02:46]} 15. Bg5 {[%clk 0:01:59]}  Qa6 {[%clk 0:02:43]} 16. b5 {[%clk 0:01:59]}  Qd6 {[%clk 0:02:42]} 17. Bxf6 {[%clk 0:01:59]}  gxf6 {[%clk 0:02:42]} 18. Qe3 {[%clk 0:01:59]}  Kh8 {[%clk 0:02:32]} 19. Ne2 {[%clk 0:01:53]}  Nd7 {[%clk 0:02:31]} 20. Nf4 {[%clk 0:01:53]}  Rg8 {[%clk 0:02:30]} 21. Nh5 {[%clk 0:01:52]}  a6 {[%clk 0:02:20]} 0-1


[Site "https://www.chess.com"]

[Event "Titled Tuesday Blitz June 6 Early 2023"]
[White "Cardozo Munar, Carlos Eduardo"]
[Black "cristianserban1"]
[WhiteFideId "4409477"]
[WhiteElo "2067"]
[BlackElo "2477"]
[Result "1-0"]
[Round "6"]
[TimeControl "180+2"]
[Date "2023.06.06"]
[WhiteClock "0:00:14"]
[BlackClock "0:00:02"]
[Board "136"]

1. d4 {[%clk 0:03:00]}  d6 {[%clk 0:02:59]} 2. c3 {[%clk 0:02:56]}  g6 {[%clk 0:02:57]} 3. Nf3 {[%clk 0:02:56]}  Bg7 {[%clk 0:02:58]} 4. e4 {[%clk 0:02:55]}  Nf6 {[%clk 0:02:52]} 5. Bd3 {[%clk 0:02:53]}  O-O {[%clk 0:02:52]} 6. Bg5 {[%clk 0:02:53]}  Nc6 {[%clk 0:02:49]} 7. Nbd2 {[%clk 0:02:53]}  e5 {[%clk 0:02:49]} 8. h3 {[%clk 0:02:51]}  h6 {[%clk 0:02:47]} 9. Bh4 {[%clk 0:02:50]}  g5 {[%clk 0:02:47]} 10. Bg3 {[%clk 0:02:50]}  Nh5 {[%clk 0:02:44]} 11. Nxe5 {[%clk 0:02:27]}  Nxe5 {[%clk 0:02:42]} 12. Bxe5 {[%clk 0:02:25]}  dxe5 {[%clk 0:02:40]} 13. Qxh5 {[%clk 0:02:25]}  exd4 {[%clk 0:02:40]} 14. c4 {[%clk 0:02:18]}  f5 {[%clk 0:01:42]} 15. exf5 {[%clk 0:02:13]}  Bxf5 {[%clk 0:01:43]} 16. Bxf5 {[%clk 0:02:13]}  Rxf5 {[%clk 0:01:44]} 17. O-O {[%clk 0:02:12]}  Qf8 {[%clk 0:01:43]} 18. Rae1 {[%clk 0:01:58]}  d3 {[%clk 0:01:35]} 19. Re6 {[%clk 0:01:28]}  Qc5 {[%clk 0:00:50]} 20. b4 {[%clk 0:01:01]}  Qxb4 {[%clk 0:00:36]} 21. Rxh6 {[%clk 0:00:55]}  Qxd2 {[%clk 0:00:25]} 22. Qg6 {[%clk 0:00:54]}  Qc3 {[%clk 0:00:14]} 23. Qh7+ {[%clk 0:00:52]}  Kf8 {[%clk 0:00:05]} 24. Qxf5+ {[%clk 0:00:53]}  Kg8 {[%clk 0:00:06]} 25. Qe6+ {[%clk 0:00:18]}  Kf8 {[%clk 0:00:06]} 26. Qf5+ {[%clk 0:00:18]}  Kg8 {[%clk 0:00:06]} 27. Qe6+ {[%clk 0:00:18]}  Kf8 {[%clk 0:00:07]} 28. Rg6 {[%clk 0:00:16]}  Re8 {[%clk 0:00:06]} 29. Qf5+ {[%clk 0:00:16]}  Kg8 {[%clk 0:00:07]} 30. Qxg5 {[%clk 0:00:16]}  d2 {[%clk 0:00:06]} 31. Qd5+ {[%clk 0:00:15]}  Kh7 {[%clk 0:00:06]} 32. Rg4 {[%clk 0:00:16]}  Re1 {[%clk 0:00:05]} 33. Rh4+ {[%clk 0:00:16]}  Kg6 {[%clk 0:00:04]} 34. Qh5+ {[%clk 0:00:15]}  Kf6 {[%clk 0:00:04]} 35. Rf4+ {[%clk 0:00:15]}  Ke6 {[%clk 0:00:03]} 36. Qd5+ {[%clk 0:00:14]}  Ke7 {[%clk 0:00:02]} 37. Rf7+ {[%clk 0:00:14]}  Ke8 {[%clk 0:00:02]} 38. Qd7# {[%clk 0:00:14]} 1-0


[Site "https://www.chess.com"]

[Event "Titled Tuesday Blitz June 6 Early 2023"]
[White "Ljukin, Sergei"]
[Black "Dubreuil, Julien"]
[WhiteFideId "14102200"]
[BlackFideId "621285"]
[WhiteElo "2312"]
[BlackElo "2280"]
[Result "1-0"]
[Round "6"]
[TimeControl "180+2"]
[Date "2023.06.06"]
[WhiteClock "0:02:04"]
[BlackClock "0:00:34"]
[Board "137"]

1. e4 {[%clk 0:02:56]}  e5 {[%clk 0:03:00]} 2. Nf3 {[%clk 0:02:56]}  Nc6 {[%clk 0:03:00]} 3. Bb5 {[%clk 0:02:57]}  a6 {[%clk 0:03:01]} 4. Ba4 {[%clk 0:02:57]}  Nf6 {[%clk 0:02:59]} 5. Qe2 {[%clk 0:02:57]}  b5 {[%clk 0:02:58]} 6. Bb3 {[%clk 0:02:57]}  Bc5 {[%clk 0:02:58]} 7. c3 {[%clk 0:02:57]}  O-O {[%clk 0:02:58]} 8. d3 {[%clk 0:02:58]}  d6 {[%clk 0:02:56]} 9. Bg5 {[%clk 0:02:58]}  h6 {[%clk 0:02:54]} 10. Bh4 {[%clk 0:02:59]}  b4 {[%clk 0:02:35]} 11. Nbd2 {[%clk 0:02:56]}  bxc3 {[%clk 0:02:32]} 12. bxc3 {[%clk 0:02:56]}  Na5 {[%clk 0:02:32]} 13. Bc2 {[%clk 0:02:56]}  Rb8 {[%clk 0:02:31]} 14. Nf1 {[%clk 0:02:48]}  Bd7 {[%clk 0:02:21]} 15. Ne3 {[%clk 0:02:40]}  c6 {[%clk 0:02:08]} 16. O-O {[%clk 0:02:27]}  Kh7 {[%clk 0:01:50]} 17. d4 {[%clk 0:02:27]}  Ba3 {[%clk 0:01:38]} 18. dxe5 {[%clk 0:02:19]}  dxe5 {[%clk 0:01:38]} 19. Nxe5 {[%clk 0:02:19]}  Be8 {[%clk 0:01:37]} 20. N5c4 {[%clk 0:02:14]}  Nxc4 {[%clk 0:01:35]} 21. Qxc4 {[%clk 0:02:14]}  g5 {[%clk 0:01:04]} 22. Bg3 {[%clk 0:02:11]}  Rb2 {[%clk 0:00:51]} 23. e5+ {[%clk 0:02:09]}  Rxc2 {[%clk 0:00:51]} 24. Nxc2 {[%clk 0:02:09]}  Qd5 {[%clk 0:00:34]} 25. Qxd5 {[%clk 0:02:07]}  Nxd5 {[%clk 0:00:34]} 26. Nxa3 {[%clk 0:02:07]}  Nxc3 {[%clk 0:00:34]} 27. Rfe1 {[%clk 0:02:04]} 1-0


[Site "https://www.chess.com"]